bitfinex/quotes_SOLUSD_20250718
["timestamp","ask_amount","ask_price","bid_price","bid_amount"]
[1752800164993,5.56212614,179.79,179.74,6.7552881]
[1752800165184,6.27212614,179.79,179.74,6.7552881]
[1752800165579,12.34741424,179.79,179.74,0.68]
[1752800165903,6.7852881,179.78,179.74,0.03]
[1752800166291,5.5626634,179.77,179.74,0.03]
[1752800166591,0.71,179.78,179.74,0.68]
[1752800166592,6.2724209,179.78,179.74,0.68]
[1752800166778,5.5624209,179.78,179.74,6.7552881]
[1752800167402,5.5624209,179.78,179.74,0.68]
[1752800167596,6.7852881,179.8,179.75,6.7252881]
[1752800167793,6.1052881,179.82,179.77,6.0752881]
[1752800167983,0.03,179.82,179.79,6.0752881]
[1752800168297,0.03,179.82,179.79,38.1452881]
[1752800168501,0.03,179.82,179.79,37.4952881]
[1752800168702,5.09049822,179.84,179.8,0.65]
[1752800169703,5.5598799,179.86,179.8,6.0752881]
[1752800169908,5.5598799,179.86,179.81,6.7252881]
[1752800170211,12.345168,179.86,179.81,6.7252881]
[1752800170510,0.71,179.85,179.8,6.0752881]
[1752800170883,6.0752881,179.83,179.78,0.65]
[1752800171091,6.0752881,179.83,179.77,1.561]
[1752800171092,6.0752881,179.82,179.77,6.0752881]
[1752800171398,0.71,179.81,179.77,31.4]
[1752800171913,5.5598799,179.86,179.78,0.65]
[1752800172092,0.71,179.84,179.78,0.65]
[1752800172407,6.0752881,179.82,179.78,0.65]
[1752800172595,0.71,179.81,179.77,31.4]
[1752800172797,6.0752881,179.83,179.78,0.65]
[1752800173016,6.7852881,179.83,179.78,0.65]
[1752800173207,0.71,179.82,179.77,37.4752881]
[1752800173513,0.71,179.82,179.75,6.0752881]
[1752800173714,6.0752881,179.81,179.76,31.4]
[1752800173915,19.45957966,179.86,179.76,37.4752881]
[1752800174093,11.63640477,179.82,179.76,38.1252881]
[1752800174484,0.71,179.82,179.77,6.0752881]
[1752800174688,26.0,179.8,179.78,0.65]
[1752800174902,26.0,179.78,179.74,0.03]
[1752800175199,26.0,179.78,179.74,1e-08]
[1752800175200,6.0752881,179.75,179.74,1e-08]
[1752800175408,32.0752881,179.75,179.74,1e-08]
[1752800175588,34.3383881,179.75,179.66,0.03]
[1752800175916,6.0752881,179.67,179.66,0.03]
[1752800176111,11.64104754,179.67,179.66,0.03]
[1752800176407,12.35104754,179.67,179.66,0.03]
[1752800177207,10.44508713,179.67,179.66,0.03]
[1752800177598,15.30062214,179.68,179.66,0.03]
[1752800177799,9.73508713,179.72,179.66,10.41508713]
[1752800178002,15.29864828,179.75,179.69,9.73508713]
[1752800178401,15.29864828,179.75,179.68,6.21538823]
[1752800178803,10.44508713,179.74,179.68,15.95047536]
[1752800179308,9.73508713,179.76,179.69,0.65]
[1752800179615,9.73508713,179.74,179.69,0.65]
[1752800180003,0.71,179.74,179.69,0.65]
[1752800180314,0.71,179.74,179.69,10.38508713]
[1752800180713,13.90707647,179.77,179.68,26.5197711]
[1752800180908,0.71,179.77,179.7,10.38508713]
[1752800181218,9.73508713,179.76,179.7,9.73508713]
[1752800181419,0.71,179.75,179.7,9.73508713]
[1752800181596,0.71,179.74,179.7,9.73508713]
[1752800181900,0.71,179.74,179.69,9.73508713]
[1752800182624,0.71,179.74,179.69,10.38508713]
[1752800183408,5.56349859,179.75,179.7,0.65]
[1752800183718,16.00858572,179.75,179.7,10.38508713]
[1752800184220,15.29858572,179.75,179.71,0.65]
[1752800184429,5.56349859,179.75,179.7,9.73508713]
[1752800184720,15.29769367,179.78,179.71,0.65]
[1752800184923,9.73508713,179.77,179.71,10.38508713]
[1752800185111,9.73508713,179.77,179.71,0.65]
[1752800185300,10.44508713,179.77,179.71,10.38508713]
[1752800185502,0.71,179.77,179.72,9.73508713]
[1752800185697,15.29769367,179.78,179.73,0.65]
[1752800185926,16.00769367,179.78,179.73,0.65]
[1752800186123,10.44508713,179.78,179.72,9.73508713]
[1752800186334,10.44508713,179.8,179.74,9.73508713]
[1752800186509,9.73508713,179.79,179.74,15.29865849]
[1752800186707,16.00690817,179.8,179.74,15.29865849]
[1752800187031,9.73508713,179.79,179.72,0.65]
[1752800187209,9.73508713,179.78,179.72,10.38508713]
[1752800188021,0.71,179.79,179.73,9.73508713]
[1752800188224,16.00722888,179.79,179.74,9.73508713]
[1752800188802,0.71,179.78,179.73,9.73508713]
[1752800189202,0.71,179.78,179.74,9.73508713]
[1752800189826,0.71,179.78,179.73,10.44508713]
[1752800190505,0.71,179.78,179.73,16.00893188]
[1752800190712,0.71,179.78,179.73,6.27384475]
[1752800191130,0.71,179.78,179.73,16.00893188]
[1752800191642,0.71,179.78,179.74,9.73508713]
[1752800192215,6.27244349,179.78,179.73,0.71]
[1752800192547,9.73508713,179.76,179.71,9.73508713]
[1752800192728,0.69,179.75,179.7,41.80508713]
[1752800193051,9.73508713,179.74,179.7,31.36]
[1752800193345,0.69,179.74,179.7,31.36]
[1752800193511,9.73508713,179.75,179.7,41.80508713]
[1752800193913,10.42508713,179.75,179.7,41.80508713]
[1752800195131,9.73508713,179.76,179.71,0.71]
[1752800195442,9.73508713,179.76,179.72,0.71]
[1752800195642,10.42508713,179.75,179.7,46.65985661]
[1752800195824,0.69,179.74,179.7,46.6598932]
[1752800196021,0.69,179.74,179.7,47.3698932]
[1752800196221,9.73508713,179.75,179.7,47.3698932]
[1752800196534,10.42508713,179.75,179.7,47.3698932]
[1752800196740,9.73508713,179.76,179.71,0.71]
[1752800196927,10.42508713,179.76,179.71,6.2745044]
[1752800197247,9.73508713,179.77,179.72,0.71]
[1752800197435,9.73508713,179.77,179.73,0.71]
[1752800197737,10.42508713,179.77,179.71,16.00959153]
[1752800198116,9.73508713,179.78,179.72,10.44508713]
[1752800198316,9.73508713,179.78,179.73,0.71]
[1752800198539,9.73508713,179.77,179.73,0.71]
[1752800198735,10.42508713,179.77,179.71,6.2745044]
[1752800198931,0.69,179.77,179.71,12.35221996]
[1752800199142,12.3304215,179.77,179.71,6.2745044]
[1752800199331,5.56270594,179.77,179.71,5.5645044]
[1752800199537,6.07771556,179.77,179.72,0.71]
[1752800199727,6.07771556,179.77,179.73,0.71]
[1752800200042,6.13771556,179.78,179.73,0.71]
[1752800200425,6.76771556,179.77,179.71,6.2745044]
[1752800200630,0.69,179.76,179.7,43.03250658]
[1752800200833,0.69,179.76,179.71,22.86239953]
[1752800201127,0.06,179.78,179.72,6.07771556]
[1752800201128,6.82771556,179.78,179.72,6.07771556]
[1752800201532,6.82771556,179.78,179.73,6.07771556]
[1752800201731,6.13771556,179.78,179.74,0.71]
[1752800201920,0.06,179.78,179.75,6.78771556]
[1752800202120,0.06,179.78,179.76,6.78771556]
[1752800202530,0.06,179.78,179.76,0.71]
[1752800203518,0.06,179.78,179.77,0.71]
[1752800203940,0.06,179.78,179.75,11.64088833]
[1752800204419,0.06,179.78,179.72,21.62360174]
[1752800204420,0.06,179.78,179.73,5.563639]
[1752800204738,0.06,179.78,179.74,31.26]
[1752800204940,0.69,179.77,179.74,31.26]
[1752800205240,5.62236977,179.78,179.74,31.26]
[1752800205442,0.06,179.78,179.75,0.71]
[1752800205620,0.75,179.78,179.74,37.33771556]
[1752800205820,0.75,179.78,179.74,42.90124358]
[1752800206043,0.75,179.78,179.74,43.61124358]
[1752800206240,0.06,179.78,179.75,6.78771556]
[1752800206447,0.06,179.78,179.76,6.78771556]
[1752800206946,0.06,179.78,179.77,0.71]
[1752800207621,0.06,179.78,179.77,31.95]
[1752800207939,0.06,179.78,179.77,37.5126634]
[1752800208517,0.06,179.78,179.77,31.95]
[1752800209423,0.06,179.78,179.77,37.5126634]
[1752800209847,0.06,179.78,179.77,31.95]
[1752800211237,0.06,179.78,179.77,37.5126634]
[1752800211638,0.06,179.78,179.77,31.95]
[1752800212227,0.06,179.78,179.77,43.59037896]
[1752800213849,0.06,179.78,179.77,60.37506293]
[1752800214038,0.06,179.78,179.77,54.29734737]
[1752800214650,0.06,179.78,179.77,60.37506293]
[1752800215432,0.06,179.78,179.77,43.59037896]
[1752800215653,0.06,179.78,179.77,60.37506293]
[1752800217030,0.06,179.82,179.77,74.28172143]
[1752800217350,0.06,179.82,179.81,6.07771556]
[1752800217554,0.06,179.82,179.81,59.62382547]
[1752800217851,0.06,179.82,179.81,61.84902547]
[1752800218234,0.06,179.82,179.81,12.3491415]
[1752800218434,0.06,179.82,179.81,43.5291415]
[1752800218856,0.06,179.82,179.79,16.78468397]
[1752800219155,0.06,179.82,179.8,31.18]
[1752800219557,0.06,179.82,179.8,43.49925289]
[1752800219730,0.06,179.82,179.81,0.68]
[1752800219928,0.06,179.82,179.81,31.86]
[1752800220155,0.06,179.82,179.81,31.18]
[1752800220663,0.06,179.82,179.81,37.93771556]
[1752800221129,0.06,179.82,179.81,31.86]
[1752800221330,0.06,179.82,179.81,0.68]
[1752800221658,0.06,179.82,179.81,31.18]
[1752800221857,0.06,179.82,179.81,31.16]
[1752800222048,0.75,179.82,179.81,31.16]
[1752800222437,0.75,179.82,179.77,0.68]
[1752800222438,0.75,179.82,179.79,31.16]
[1752800222749,0.69,179.81,179.79,31.16]
[1752800223958,0.06,179.82,179.8,6.75771556]
[1752800224156,0.06,179.82,179.81,37.23771556]
[1752800224338,0.06,179.82,179.81,37.91771556]
[1752800224542,0.06,179.82,179.81,54.70239953]
[1752800225148,0.06,179.82,179.81,56.34679953]
[1752800225443,0.06,179.82,179.81,30.74822547]
[1752800225647,0.06,179.82,179.81,61.88822547]
[1752800229175,1e-08,179.82,179.81,61.88822547]
[1752800234962,1e-08,179.82,179.81,54.16610991]
[1752800235140,1e-08,179.82,179.81,60.24382547]
[1752800235345,1e-08,179.82,179.8,5.56163588]
[1752800235567,1e-08,179.82,179.79,16.78468397]
[1752800235568,1e-08,179.82,179.81,31.1]
[1752800235765,0.69000001,179.82,179.81,31.1]
[1752800235976,0.69,179.81,179.8,31.1]
[1752800236449,0.69,179.81,179.79,31.08]
[1752800236647,0.69,179.8,179.79,31.08]
[1752800237572,0.69,179.8,179.78,31.08]
[1752800237770,0.69,179.79,179.78,31.08]
[1752800239071,0.69,179.81,179.78,31.08]
[1752800239375,11.63892133,179.82,179.78,31.08]
[1752800239376,0.69,179.8,179.78,31.08]
[1752800239747,0.69,179.79,179.75,16.78468397]
[1752800239970,6.07771556,179.8,179.76,31.08]
[1752800239971,0.69,179.78,179.76,31.08]
[1752800240853,5.56206005,179.79,179.76,31.08]
[1752800241054,0.69,179.77,179.75,31.08]
[1752800241771,0.69,179.77,179.74,0.03]
[1752800241969,0.69,179.77,179.74,31.09]
[1752800243078,6.25268197,179.77,179.74,31.09]
[1752800243582,0.69,179.77,179.74,31.09]
[1752800243773,0.69,179.76,179.74,31.09]
[1752800243960,6.07771556,179.75,179.74,0.03]
[1752800244366,6.76771556,179.75,179.74,0.03]
[1752800244545,12.33099789,179.75,179.74,0.03]
[1752800245179,1e-08,179.82,179.75,16.78468397]
[1752800245354,1e-08,179.82,179.81,6.07771556]
[1752800245551,1e-08,179.82,179.81,37.13771556]
[1752800245776,1e-08,179.82,179.81,31.06]
[1752800246159,0.69000001,179.82,179.75,0.68]
[1752800246360,0.69000001,179.82,179.79,6.07771556]
[1752800246658,1e-08,179.82,179.81,6.07771556]
[1752800246858,1e-08,179.82,179.81,37.13771556]
[1752800247171,1e-08,179.82,179.81,42.6991415]
[1752800247879,1e-08,179.82,179.81,60.16382547]
[1752800251555,1e-08,179.82,179.81,60.71996806]
[1752800251959,1e-08,179.82,179.81,60.16382547]
[1752800252155,0.06,179.86,179.82,6.4541]
[1752800252387,0.06,179.86,179.85,16.78468397]
[1752800252560,0.06,179.86,179.85,53.88239953]
[1752800252760,0.06,179.86,179.85,54.56239953]
[1752800253158,5.01771556,179.94,179.86,16.78468397]
[1752800253500,31.55710876,179.95,179.89,6.07771556]
[1752800253779,26.0,179.95,179.91,16.78468397]
[1752800254156,6.17771556,179.96,179.93,16.78468397]
[1752800254362,32.07771556,179.95,179.93,16.78468397]
[1752800255169,0.72,179.94,179.93,16.78468397]
[1752800255978,6.27740802,179.94,179.93,16.78468397]
[1752800256164,0.72,179.94,179.93,16.78468397]
[1752800256672,6.27740802,179.94,179.93,16.78468397]
[1752800257267,0.1,179.96,179.93,16.78468397]
[1752800257466,6.37679611,179.96,179.95,16.78468397]
[1752800257786,0.82,179.96,179.95,16.78468397]
[1752800258758,0.1,179.96,179.95,16.78468397]
[1752800258960,6.89771556,179.96,179.95,16.78468397]
[1752800259170,0.1,179.96,179.91,16.78468397]
[1752800259482,0.1,179.96,179.94,16.78468397]
[1752800262195,0.1,179.96,179.94,30.96]
[1752800262698,11.7345181,179.96,179.94,30.96]
[1752800262894,6.89771556,179.96,179.94,30.96]
[1752800263100,6.89771556,179.96,179.95,16.78468397]
[1752800263999,12.45457232,179.96,179.95,16.78468397]
[1752800264596,0.1,179.96,179.95,16.78468397]
[1752800266297,0.1,179.96,179.93,0.68]
[1752800266501,0.1,179.96,179.95,16.78468397]
[1752800268804,6.17771556,179.96,179.95,16.78468397]
[1752800269100,0.1,179.96,179.95,16.78468397]
[1752800269472,11.73450595,179.96,179.95,16.78468397]
[1752800269784,11.73450595,179.96,179.92,16.78468397]
[1752800269785,12.45450595,179.96,179.92,16.78468397]
[1752800269971,6.07771556,179.94,179.92,16.78468397]
[1752800270170,6.07771556,179.94,179.9,16.78468397]
[1752800270583,6.07771556,179.94,179.9,17.46468397]
[1752800271098,0.72,179.95,179.9,17.46468397]
[1752800271302,6.79771556,179.95,179.92,16.78468397]
[1752800271482,6.79771556,179.95,179.91,0.68]
[1752800271483,5.6570019,179.96,179.9,47.70468397]
[1752800271680,5.6570019,179.96,179.94,16.78468397]
[1752800271897,6.07771556,179.95,179.94,16.78468397]
[1752800272780,12.35481475,179.95,179.94,16.78468397]
[1752800272981,6.27709919,179.95,179.91,16.78468397]
[1752800273311,6.07771556,179.94,179.91,16.78468397]
[1752800273605,6.07771556,179.94,179.92,0.68]
[1752800273785,6.07771556,179.94,179.91,16.78468397]
[1752800273987,5.65683309,179.96,179.91,17.46468397]
[1752800274210,6.07771556,179.94,179.91,17.46468397]
[1752800274505,6.17771556,179.96,179.93,16.78468397]
[1752800274690,6.07771556,179.95,179.93,16.78468397]
[1752800274886,6.07771556,179.94,179.93,16.78468397]
[1752800275305,6.07771556,179.94,179.9,0.68]
[1752800275481,6.37690834,179.96,179.91,16.78468397]
[1752800275482,5.65690834,179.96,179.91,16.78468397]
[1752800275682,6.07771556,179.94,179.91,17.46468397]
[1752800275884,6.07771556,179.95,179.91,17.46468397]
[1752800276089,6.37690834,179.96,179.92,0.68]
[1752800276387,6.37690834,179.96,179.93,0.68]
[1752800276388,6.07771556,179.95,179.93,0.68]
[1752800276585,6.07771556,179.95,179.91,16.78468397]
[1752800276894,6.07771556,179.95,179.93,16.78468397]
[1752800277296,6.07771556,179.95,179.93,17.46468397]
[1752800277697,6.07771556,179.95,179.93,16.78468397]
[1752800279287,0.72,179.98,179.93,16.78468397]
[1752800279604,6.07771556,179.95,179.93,16.78468397]
[1752800280212,39.89018822,179.99,179.93,17.50468397]
[1752800280512,6.07771556,179.97,179.95,16.78468397]
[1752800280816,11.63422467,179.97,179.95,16.78468397]
[1752800281498,6.07771556,179.96,179.93,16.78468397]
[1752800281699,6.07771556,179.96,179.94,0.72]
[1752800282294,11.63422467,179.97,179.95,0.72]
[1752800282501,5.55650911,179.97,179.93,16.78468397]
[1752800282696,5.55681502,179.96,179.93,16.78468397]
[1752800282912,11.63453058,179.96,179.93,17.50468397]
[1752800283611,11.63453058,179.96,179.92,30.9]
[1752800283612,6.07771556,179.98,179.95,16.78468397]
[1752800283816,6.07771556,179.97,179.95,16.78468397]
[1752800284023,6.07771556,179.98,179.96,17.50468397]
[1752800284317,6.07771556,179.98,179.97,16.78468397]
[1752800284492,6.07771556,179.98,179.95,16.78468397]
[1752800284693,11.63414989,179.98,179.95,16.78468397]
[1752800284994,6.07771556,179.97,179.95,16.78468397]
[1752800285190,5.55643433,179.98,179.95,16.78468397]
[1752800285417,6.07771556,179.97,179.95,16.78468397]
[1752800285811,5.55643433,179.98,179.95,16.78468397]
[1752800286009,11.63414989,179.98,179.95,16.78468397]
[1752800286918,5.55586421,179.99,179.96,16.78468397]
[1752800287122,5.55586421,179.99,179.92,42.5356641]
[1752800287123,6.07771556,179.98,179.93,16.78468397]
[1752800287324,6.07771556,179.98,179.96,0.72]
[1752800287821,6.07771556,179.98,179.95,16.78468397]
[1752800288022,6.07771556,179.98,179.95,0.72]
[1752800288626,6.07771556,179.96,179.93,16.78468397]
[1752800288925,6.07771556,179.96,179.92,16.78468397]
[1752800288926,5.55709919,179.95,179.92,16.78468397]
[1752800289130,5.55709919,179.95,179.92,17.50468397]
[1752800289637,11.63481475,179.95,179.92,17.50468397]
[1752800289930,5.55709919,179.95,179.92,17.50468397]
[1752800290225,12.35481475,179.95,179.92,16.78468397]
[1752800290518,12.35481475,179.95,179.91,16.78468397]
[1752800290903,6.07771556,179.94,179.91,16.78468397]
[1752800291424,6.07771556,179.94,179.91,0.72]
[1752800291620,2.89642361,179.98,179.9,16.78468397]
[1752800291821,6.07771556,179.96,179.92,0.72]
[1752800292124,0.03,179.96,179.93,0.72]
[1752800292325,0.03,179.96,179.94,17.50468397]
[1752800292498,6.10771556,179.96,179.93,16.78468397]
[1752800292929,11.66450685,179.96,179.93,16.78468397]
[1752800293627,6.07771556,179.95,179.93,16.78468397]
[1752800294920,11.63512181,179.95,179.93,16.78468397]
[1752800295634,12.35512181,179.95,179.92,0.3]
[1752800296016,5.55740625,179.95,179.92,0.3]
[1752800296224,5.55740625,179.95,179.92,1.02]
[1752800296423,6.10771556,179.96,179.92,1.02]
[1752800296744,0.03,179.96,179.94,16.78468397]
[1752800297028,0.03,179.96,179.95,17.50468397]
[1752800297326,0.03,179.96,179.95,16.78468397]
[1752800299022,6.10771556,179.96,179.95,16.78468397]
[1752800299429,5.58679039,179.96,179.95,16.78468397]
[1752800299629,6.30679039,179.96,179.95,16.78468397]
[1752800299937,12.38450595,179.96,179.95,16.78468397]
[1752800300120,6.30679039,179.96,179.95,16.78468397]
[1752800300507,12.38450595,179.96,179.95,16.78468397]
[1752800301042,12.38450595,179.96,179.92,0.3]
[1752800301326,5.55740802,179.94,179.92,0.3]
[1752800302034,6.79771556,179.93,179.92,0.3]
[1752800303037,0.72,179.93,179.92,0.3]
[1752800303210,6.79771556,179.93,179.92,0.3]
[1752800303417,12.35543244,179.93,179.92,0.3]
[1752800304532,11.63519758,179.94,179.92,0.3]
[1752800305439,0.75,179.96,179.92,0.3]
[1752800305440,0.03,179.96,179.94,16.78468397]
[1752800305617,0.03,179.96,179.95,17.50468397]
[1752800306611,0.03,179.96,179.95,16.78468397]
[1752800308229,0.03,179.96,179.93,0.72]
[1752800308442,0.03,179.96,179.94,0.72]
[1752800309144,0.03,179.96,179.95,0.66]
[1752800312827,0.03,179.96,179.93,17.44468397]
[1752800313023,0.03,179.96,179.94,0.66]
[1752800313547,0.03,179.96,179.95,0.66]
[1752800313724,0.03,179.96,179.95,0.96]
[1752800321250,0.03,179.96,179.95,48.50468397]
[1752800322248,0.03,179.96,179.95,60.13949872]
[1752800322655,0.03,179.96,179.95,54.06178316]
[1752800322956,0.03,179.96,179.95,48.50468397]
[1752800323333,0.03,179.96,179.95,54.06178316]
[1752800323736,0.03,179.96,179.95,48.50468397]
[1752800324633,0.03,179.96,179.95,54.06178316]
[1752800324831,0.03,179.96,179.95,48.50468397]
[1752800326254,0.03,179.96,179.95,31.72]
[1752800326762,0.03,179.96,179.95,32.22]
[1752800326932,0.03,179.96,179.95,32.17]
[1752800328046,0.03,179.96,179.95,31.51]
[1752800328263,0.03,179.96,179.95,32.17]
[1752800328950,6.10771556,179.96,179.95,31.47]
[1752800329749,0.03,179.96,179.95,31.47]
[1752800329953,0.03,179.96,179.95,32.13]
[1752800330146,0.03,179.96,179.95,48.91468397]
[1752800331264,0.03,179.96,179.95,50.56977171]
[1752800335653,6.78771556,179.96,179.95,19.18977171]
[1752800335858,6.78771556,179.96,179.95,2.40508774]
[1752800336162,0.03,179.96,179.95,2.40508774]
[1752800336369,6.10771556,179.96,179.95,2.40508774]
[1752800336576,11.66450595,179.96,179.95,2.40508774]
[1752800336866,0.03,179.96,179.95,50.54977171]
[1752800337069,11.66450595,179.96,179.95,33.10508774]
[1752800337257,11.66450595,179.96,179.95,2.40508774]
[1752800337461,11.66450595,179.96,179.95,2.13928758]
[1752800338155,5.58679039,179.96,179.95,2.13928758]
[1752800338352,11.66450595,179.96,179.95,2.13928758]
[1752800338749,5.58679039,179.96,179.95,2.13928758]
[1752800338957,11.66450595,179.96,179.95,2.13928758]
[1752800340179,12.36450595,179.96,179.95,2.13928758]
[1752800340474,12.36450595,179.96,179.92,17.08468397]
[1752800340475,26.25648194,179.96,179.92,0.3]
[1752800340680,6.07771556,179.93,179.92,0.3]
[1752800341180,6.77771556,179.93,179.92,0.3]
[1752800341865,12.33543244,179.93,179.92,0.3]
[1752800342955,6.25771688,179.93,179.92,0.3]
[1752800343285,12.33543244,179.93,179.92,0.3]
[1752800343452,6.07771556,179.88,179.87,0.3]
[1752800343648,6.07771556,179.88,179.87,1.68979311]
[1752800343852,11.63697729,179.88,179.87,1.68979311]
[1752800344969,5.55926173,179.88,179.87,1.68979311]
[1752800345174,11.63697729,179.88,179.87,1.68979311]
[1752800347975,11.63666825,179.89,179.87,1.68979311]
[1752800348284,11.63666825,179.89,179.87,0.3]
[1752800348594,12.33666825,179.89,179.87,0.3]
[1752800348881,6.25895269,179.89,179.87,0.3]
[1752800349175,11.63697729,179.88,179.87,0.3]
[1752800349365,5.55926173,179.88,179.87,0.3]
[1752800349774,6.25926173,179.88,179.87,0.3]
[1752800349976,12.33697729,179.88,179.87,0.3]
[1752800352566,6.25926173,179.88,179.87,0.3]
[1752800352897,12.33697729,179.88,179.87,0.3]
[1752800354084,12.33697729,179.88,179.82,30.68]
[1752800354389,6.07771556,179.85,179.82,30.68]
[1752800354591,6.07771556,179.85,179.83,0.66]
[1752800354770,6.07771556,179.85,179.82,30.68]
[1752800354971,6.07771556,179.85,179.82,31.34]
[1752800355175,6.07771556,179.88,179.84,16.78468397]
[1752800355373,6.07771556,179.89,179.85,0.66]
[1752800356289,11.63680701,179.89,179.85,0.66]
[1752800356485,6.07771556,179.88,179.86,0.66]
[1752800356693,6.07771556,179.88,179.82,36.24101952]
[1752800356694,6.07771556,179.88,179.87,0.06]
[1752800357676,5.55926173,179.88,179.85,0.66]
[1752800357972,11.63697729,179.88,179.85,0.66]
[1752800359171,5.55926173,179.88,179.86,0.66]
[1752800359781,5.55926173,179.88,179.83,22.86239953]
[1752800359981,5.55926173,179.88,179.84,2.04981482]
[1752800360189,5.55926173,179.88,179.85,0.66]
[1752800360896,0.7,179.87,179.83,16.78468397]
[1752800361123,6.07771556,179.88,179.84,2.04981496]
[1752800361124,6.77771556,179.88,179.84,2.04981496]
[1752800361303,0.7,179.87,179.83,16.78468397]
[1752800361477,6.07771556,179.86,179.84,1.38981496]
[1752800361682,6.07771556,179.86,179.83,17.44468397]
[1752800361883,6.77771556,179.87,179.84,1.38981519]
[1752800362195,6.07771556,179.87,179.84,1.38981519]
[1752800362394,0.7,179.87,179.83,16.78468397]
[1752800362600,32.07771556,179.88,179.84,0.66]
[1752800362901,32.07771556,179.88,179.83,16.78468397]
[1752800362902,37.63712166,179.88,179.85,0.66]
[1752800364105,38.33712166,179.88,179.83,17.44468397]
[1752800364276,6.07771556,179.87,179.83,17.44468397]
[1752800364605,6.07771556,179.87,179.84,0.66]
[1752800364784,11.63738591,179.87,179.84,0.66]
[1752800364984,5.55967035,179.87,179.84,0.66]
[1752800365193,5.55967035,179.87,179.83,16.44468397]
[1752800365388,5.55967035,179.87,179.84,1.38978484]
[1752800365580,6.77771556,179.88,179.83,16.44468397]
[1752800365774,6.77771556,179.88,179.84,1.38978469]
[1752800366601,12.33710371,179.88,179.84,1.38978469]
[1752800366802,11.63710371,179.88,179.84,1.38978469]
[1752800367099,6.07771556,179.92,179.87,16.78468397]
[1752800367302,6.77771556,179.92,179.88,31.32]
[1752800367494,6.77771556,179.91,179.88,30.66]
[1752800368483,6.07771556,179.92,179.88,31.32]
[1752800368691,5.55679039,179.96,179.9,16.78468397]
[1752800368895,6.07771556,179.95,179.91,0.66]
[1752800369204,0.7,179.95,179.91,0.66]
[1752800369380,6.07771556,179.95,179.92,0.68]
[1752800369700,5.55679039,179.96,179.9,16.78468397]
[1752800369898,6.77771556,179.95,179.9,17.46468397]
[1752800370100,6.07771556,179.94,179.9,17.46468397]
[1752800370282,6.77771556,179.94,179.9,17.46468397]
[1752800371198,6.07771556,179.93,179.89,16.78468397]
[1752800371401,6.07771556,179.93,179.9,0.68]
[1752800371610,0.7,179.94,179.9,0.68]
[1752800371905,6.07771556,179.93,179.9,0.68]
[1752800372202,6.77771556,179.93,179.89,16.78468397]
[1752800372401,6.77771556,179.93,179.89,17.46468397]
[1752800372600,6.07771556,179.93,179.89,16.78468397]
[1752800372779,6.07771556,179.93,179.9,31.32]
[1752800373197,6.07771556,179.93,179.9,0.68]
[1752800373590,6.07771556,179.93,179.9,31.32]
[1752800373790,6.07771556,179.93,179.87,2.2546]
[1752800373791,6.77771556,179.92,179.87,2.2546]
[1752800373976,6.77771556,179.92,179.88,48.10468397]
[1752800375685,6.07771556,179.91,179.88,48.10468397]
[1752800375999,6.07771556,179.92,179.88,47.42468397]
[1752800376207,6.77771556,179.92,179.88,48.10468397]
[1752800376908,6.07771556,179.92,179.88,48.10468397]
[1752800377091,6.77771556,179.92,179.88,48.10468397]
[1752800377798,5.55833472,179.91,179.88,48.10468397]
[1752800380490,5.55833472,179.91,179.89,0.68]
[1752800380885,0.03,179.92,179.9,0.68]
[1752800381099,0.03,179.92,179.91,0.68]
[1752800381492,5.58802578,179.92,179.89,0.68]
[1752800381697,5.58802578,179.92,179.9,1.81173197]
[1752800381901,5.58802578,179.92,179.89,0.68]
[1752800382110,5.58802578,179.92,179.9,1.81173197]
[1752800382299,5.58802578,179.92,179.89,0.68]
[1752800382613,5.58802578,179.92,179.9,1.8122501]
[1752800382786,5.58802578,179.92,179.89,0.68]
[1752800382987,5.58802578,179.92,179.9,1.81247084]
[1752800383308,5.58802578,179.92,179.91,1.81281349]